bitfinex/quotes_BTCUSD_20260127
["timestamp","ask_amount","ask_price","bid_price","bid_amount"]
[1769498435262,0.11306001,88507.0,88494.0,0.02338578]
[1769498435483,0.05379108,88508.0,88494.0,0.02338578]
[1769498435724,0.16279684,88507.0,88494.0,0.02338578]
[1769498435901,0.04973683,88507.0,88494.0,0.02338578]
[1769498437256,0.113112,88506.0,88494.0,0.02338578]
[1769498437569,0.04973683,88507.0,88494.0,0.02338578]
[1769498437767,0.11311204,88506.0,88494.0,0.02338578]
[1769498437959,0.05379108,88506.0,88494.0,0.02338578]
[1769498438254,0.1131643,88505.0,88494.0,0.02338578]
[1769498438402,0.1131643,88504.0,88494.0,0.02338578]
[1769498438602,0.05379108,88506.0,88494.0,0.02338578]
[1769498438802,0.1131643,88505.0,88494.0,0.02338578]
[1769498439003,0.1131643,88504.0,88494.0,0.02338578]
[1769498439184,0.5262196,88510.0,88494.0,0.02338578]
[1769498439389,0.11316175,88509.0,88494.0,0.02338578]
[1769498439636,0.11316175,88508.0,88494.0,0.02338578]
[1769498439954,0.11316175,88507.0,88494.0,0.02338578]
[1769498440109,0.11316175,88506.0,88494.0,0.02338578]
[1769498440310,0.11316175,88505.0,88494.0,0.02338578]
[1769498440514,0.06633568,88507.0,88494.0,0.02338578]
[1769498440714,0.11316032,88506.0,88494.0,0.02338578]
[1769498440916,0.11316032,88505.0,88494.0,0.02338578]
[1769498441114,0.11316032,88505.0,88490.0,0.0001896]
[1769498441115,0.5262196,88504.0,88490.0,0.0001896]
[1769498441314,0.03719223,88505.0,88490.0,0.0001896]
[1769498441315,0.63937831,88503.0,88490.0,0.0001896]
[1769498441518,0.11315871,88502.0,88490.0,0.0001896]
[1769498442534,0.11315871,88502.0,88490.0,0.00027932]
[1769498444650,0.41162391,88503.0,88490.0,0.00027932]
[1769498445022,0.41162391,88503.0,88481.0,0.51407513]
[1769498445386,0.41162391,88503.0,88482.0,0.48082708]
[1769498445589,0.02397549,88502.0,88482.0,0.42420456]
[1769498445749,0.02397549,88502.0,88482.0,0.36758269]
[1769498445948,0.02397549,88502.0,88482.0,0.31096082]
[1769498446156,0.02397549,88502.0,88482.0,0.25432763]
[1769498446359,0.06753543,88501.0,88482.0,0.19770575]
[1769498446559,0.02397549,88500.0,88482.0,0.14108388]
[1769498446758,0.02397549,88500.0,88482.0,0.08446201]
[1769498446955,0.02397549,88500.0,88482.0,0.02782882]
[1769498447193,0.02397549,88500.0,88480.0,0.09188938]
[1769498447398,0.04791593,88499.0,88481.0,0.45745261]
[1769498447604,0.04791593,88499.0,88481.0,0.40081813]
[1769498447823,0.04791593,88499.0,88481.0,0.34419562]
[1769498448017,0.04791593,88499.0,88481.0,0.28757311]
[1769498448227,0.04791593,88499.0,88481.0,0.2309506]
[1769498448428,0.04791593,88499.0,88481.0,0.17432808]
[1769498448633,0.04835153,88498.0,88481.0,0.11769425]
[1769498448837,0.04835153,88498.0,88481.0,0.06107174]
[1769498453797,0.01129828,88509.0,88481.0,0.06107174]
[1769498453978,0.02397549,88507.0,88482.0,0.02338578]
[1769498454212,0.51922729,88504.0,88482.0,0.02338578]
[1769498454430,0.51922729,88508.0,88482.0,0.02338578]
[1769498454648,0.51922729,88506.0,88482.0,0.5627363]
[1769498454859,0.3591029,88504.0,88483.0,0.02315156]
[1769498455002,0.51922729,88502.0,88483.0,0.02315156]
[1769498455209,0.54417484,88502.0,88483.0,0.02315156]
[1769498455616,0.51922729,88502.0,88483.0,0.02315156]
[1769498455818,0.00014008,88509.0,88484.0,0.53935052]
[1769498456030,0.51936737,88509.0,88486.0,0.53935052]
[1769498456208,0.54431492,88509.0,88487.0,0.53935052]
[1769498456410,0.54431492,88509.0,88488.0,0.02315156]
[1769498456619,0.11311073,88508.0,88490.0,0.02315156]
[1769498456814,0.11311073,88507.0,88491.0,0.05625021]
[1769498457038,0.54431492,88509.0,88491.0,0.05625021]
[1769498457241,0.11311072,88508.0,88491.0,0.05625021]
[1769498457456,0.11311072,88507.0,88491.0,0.05625021]
[1769498457658,0.51922729,88508.0,88490.0,0.02315156]
[1769498457917,0.63233908,88507.0,88490.0,0.02315156]
[1769498458062,0.11311179,88506.0,88490.0,0.02315156]
[1769498458264,0.51922729,88507.0,88490.0,0.02315156]
[1769498458488,0.11311351,88506.0,88490.0,0.02315156]
[1769498458719,0.53052583,88507.0,88490.0,0.02315156]
[1769498458921,0.11311351,88506.0,88490.0,0.02315156]
[1769498459091,0.53052583,88507.0,88490.0,0.02315156]
[1769498459286,0.11311595,88506.0,88490.0,0.02315156]
[1769498459509,0.53052583,88507.0,88490.0,0.02315156]
[1769498459710,0.11311595,88506.0,88490.0,0.02315156]
[1769498459873,0.01129866,88506.0,88490.0,0.02315156]
[1769498460218,0.11311881,88505.0,88490.0,0.02315156]
[1769498460419,0.53052583,88507.0,88490.0,0.02315156]
[1769498460623,0.11311881,88506.0,88490.0,0.02315156]
[1769498460775,0.1244176,88505.0,88490.0,0.02315156]
[1769498460982,0.01129892,88504.0,88490.0,0.02315156]
[1769498461406,0.53052608,88505.0,88490.0,0.02315156]
[1769498461581,0.01129892,88504.0,88490.0,0.02315156]
[1769498461802,0.01129892,88504.0,88480.0,0.4643612]
[1769498461803,0.51922729,88501.0,88482.0,0.53935052]
[1769498462007,0.54417484,88501.0,88482.0,0.53935052]
[1769498462584,0.01129892,88504.0,88480.0,0.08746717]
[1769498462585,0.01129854,88507.0,88484.0,0.53935052]
[1769498462792,0.11312289,88506.0,88488.0,0.53935052]
[1769498462996,0.00014008,88509.0,88491.0,0.02315156]
[1769498463306,0.11312153,88508.0,88491.0,0.02315156]
[1769498463534,0.11312153,88507.0,88491.0,0.02315156]
[1769498463737,0.11312584,88506.0,88491.0,0.02315156]
[1769498463987,0.51922729,88508.0,88491.0,0.02315156]
[1769498464176,0.11312738,88507.0,88491.0,0.02315156]
[1769498464383,0.11312738,88506.0,88491.0,0.02315156]
[1769498464678,0.51922729,88508.0,88491.0,0.02315156]
[1769498464892,0.11313268,88507.0,88491.0,0.02315156]
[1769498465043,0.51922729,88508.0,88491.0,0.02315156]
[1769498465044,0.11313268,88506.0,88491.0,0.02315156]
[1769498465244,0.11313268,88505.0,88491.0,0.02315156]
[1769498465491,0.11313268,88504.0,88491.0,0.02315156]
[1769498465647,0.11313268,88503.0,88491.0,0.02315156]
[1769498465875,0.54417484,88508.0,88491.0,0.02315156]
[1769498466081,0.11313704,88507.0,88491.0,0.02315156]
[1769498466288,0.11313704,88506.0,88491.0,0.02315156]
[1769498466484,0.11313704,88505.0,88491.0,0.02315156]
[1769498466700,0.11313704,88504.0,88491.0,0.02315156]
[1769498467006,0.11313704,88503.0,88491.0,0.02315156]
[1769498467204,0.54417484,88508.0,88491.0,0.02315156]
[1769498467410,0.11314751,88507.0,88491.0,0.02315156]
[1769498467621,0.11314751,88506.0,88491.0,0.56250208]
[1769498467915,0.11314751,88505.0,88491.0,0.56250208]
[1769498468130,0.11314751,88504.0,88491.0,0.56250208]
[1769498468433,0.00014008,88509.0,88491.0,0.56250208]
[1769498468434,0.00014008,88509.0,88491.0,0.53935052]
[1769498468588,0.000198,88513.0,88498.0,0.56250208]
[1769498468797,0.00066551,88513.0,88498.0,0.56250208]
[1769498469001,0.00066551,88513.0,88498.0,0.02315156]
[1769498469241,0.54484035,88513.0,88493.0,0.56250208]
[1769498469840,0.02494755,88512.0,88493.0,0.6498424]
[1769498470086,0.37938691,88513.0,88493.0,0.62669084]
[1769498470283,0.37938691,88513.0,88494.0,0.02315156]
[1769498470481,0.37938691,88513.0,88495.0,0.02315156]
[1769498472112,0.02494755,88512.0,88494.0,0.07485092]
[1769498472435,0.02494755,88512.0,88493.0,0.50096227]
[1769498472637,0.02494755,88512.0,88493.0,0.44433677]
[1769498472840,0.02494755,88512.0,88493.0,0.38771063]
[1769498473092,0.02494755,88512.0,88493.0,0.33109581]
[1769498473295,0.11612,88516.0,88493.0,0.27448099]
[1769498473465,0.0002924,88513.0,88495.0,0.53935052]
[1769498473674,0.02523995,88513.0,88495.0,0.48272438]
[1769498473874,0.02523995,88513.0,88495.0,0.42610956]
[1769498474076,0.02523995,88513.0,88495.0,0.31287117]
[1769498474327,0.02523995,88513.0,88495.0,0.25625763]
[1769498474530,0.02523995,88513.0,88495.0,0.19964409]
[1769498474740,0.02597596,88511.0,88490.0,0.48319317]
[1769498474953,0.51922729,88509.0,88490.0,0.42657964]
[1769498475167,0.02597596,88508.0,88490.0,0.36995157]
[1769498475375,0.02597596,88508.0,88490.0,0.31333483]
[1769498475511,0.02597596,88508.0,88490.0,0.25670677]
[1769498475717,0.02597596,88508.0,88490.0,0.20009002]
[1769498476774,0.0545817,88507.0,88490.0,0.20009002]
[1769498478936,0.08730373,88507.0,88490.0,0.20009002]
[1769498484266,0.0545817,88507.0,88490.0,0.20009002]
[1769498484479,0.00061371,88511.0,88490.0,0.20009002]
[1769498484681,0.11313785,88510.0,88490.0,0.20009002]
[1769498484892,0.11313785,88509.0,88490.0,0.20009002]
[1769498485094,0.00061371,88511.0,88490.0,0.20009002]
[1769498485295,0.11313823,88510.0,88490.0,0.20009002]
[1769498485503,0.11313823,88509.0,88490.0,0.20009002]
[1769498489937,0.0335151,88514.0,88482.0,0.61930999]
[1769498490260,0.01129777,88513.0,88482.0,0.6197775]
[1769498491204,0.04481274,88514.0,88482.0,0.6197775]
[1769498491406,0.04481274,88514.0,88484.0,0.61930999]
[1769498491640,0.01129777,88513.0,88484.0,0.61930999]
[1769498491819,0.0335151,88513.0,88484.0,0.61930999]
[1769498493216,0.04481287,88513.0,88484.0,0.61930999]
[1769498494629,0.04481287,88513.0,88485.0,0.1476]
[1769498494828,0.0112979,88512.0,88486.0,0.61930999]
[1769498495345,0.04481287,88513.0,88486.0,0.61930999]
[1769498495543,0.01129777,88513.0,88486.0,0.61930999]
[1769498495786,0.0335151,88512.0,88486.0,0.61930999]
[1769498496988,0.01129803,88511.0,88486.0,0.61930999]
[1769498497188,0.044813,88512.0,88486.0,0.61930999]
[1769498497818,0.0335151,88512.0,88486.0,0.61930999]
[1769498498031,0.01129777,88513.0,88486.0,0.61930999]
[1769498498032,0.01129841,88508.0,88486.0,0.61930999]
[1769498498236,0.0335151,88503.0,88486.0,0.61930999]
[1769498499068,0.0335151,88503.0,88485.0,0.1476]
[1769498499069,0.0335151,88501.0,88485.0,0.1476]
[1769498499209,0.03616575,88503.0,88485.0,0.1476]
[1769498499210,0.60493465,88498.0,88485.0,0.1476]
[1769498499429,0.0335151,88497.0,88485.0,0.1476]
[1769498500249,0.63620086,88495.0,88485.0,0.1476]
[1769498500453,0.63620086,88495.0,88482.0,0.00046751]
[1769498500866,0.03126621,88494.0,88482.0,0.00046751]
[1769498503230,0.63170263,88499.0,88482.0,0.6197775]
[1769498503406,0.11310063,88498.0,88482.0,0.6197775]
[1769498503611,0.63170263,88499.0,88482.0,0.6197775]
[1769498503833,0.11310063,88498.0,88482.0,0.6197775]
[1769498503988,0.63170263,88499.0,88482.0,0.6197775]
[1769498504195,0.11308778,88498.0,88482.0,0.6197775]
[1769498504389,0.63170263,88499.0,88482.0,0.6197775]
[1769498504594,0.11308778,88498.0,88482.0,0.6197775]
[1769498504911,0.63170263,88499.0,88482.0,0.6197775]
[1769498509464,0.0112993,88501.0,88482.0,0.00046751]
[1769498509673,0.60493465,88496.0,88482.0,0.00046751]
[1769498509873,0.60493465,88494.0,88482.0,0.00046751]
[1769498515695,0.02411376,88493.0,88482.0,0.00046751]
[1769498515980,0.60252127,88490.0,88482.0,0.00046751]
[1769498520569,0.01129866,88506.0,88482.0,0.00046751]
[1769498520570,0.00452574,88510.0,88482.0,0.00046751]
[1769498520779,0.60252127,88508.0,88491.0,0.02269799]
[1769498520986,0.62663503,88516.0,88500.0,0.37692552]
[1769498521192,0.00452513,88520.0,88502.0,0.59689144]
[1769498521401,0.00452513,88520.0,88505.0,0.61958943]
[1769498521612,0.00452513,88520.0,88506.0,0.02269799]
[1769498521790,0.60275347,88524.0,88506.0,0.02269799]
[1769498527838,0.60252127,88532.0,88511.0,0.59689144]
[1769498528043,0.60252127,88532.0,88514.0,0.59689144]
[1769498528258,0.03393102,88544.0,88516.0,0.59689144]
[1769498528259,0.60252127,88540.0,88516.0,0.59689144]
[1769498528477,0.60252127,88540.0,88519.0,0.02269799]
[1769498528683,0.02411376,88541.0,88520.0,0.02269799]
[1769498528891,0.60252127,88537.0,88521.0,0.06195894]
[1769498529097,0.62670367,88537.0,88521.0,0.06195894]
[1769498529297,0.60258991,88537.0,88520.0,0.02269799]
[1769498529502,0.60252127,88535.0,88520.0,0.02269799]
[1769498531199,0.62663503,88535.0,88516.0,0.59689144]
[1769498531421,0.62663503,88535.0,88516.0,0.61958943]
[1769498531646,0.62663503,88535.0,88517.0,0.10950265]
[1769498532902,0.62663503,88535.0,88517.0,0.61958943]
[1769498533115,0.02411376,88535.0,88518.0,0.02269799]
[1769498533238,0.02411376,88535.0,88519.0,0.59689144]
[1769498536438,6.864e-05,88537.0,88521.0,0.59689144]
[1769498536631,6.864e-05,88537.0,88522.0,0.01445788]
[1769498536860,6.864e-05,88537.0,88522.0,0.61134932]
[1769498538301,7.119e-05,88539.0,88522.0,0.61134932]
[1769498538508,7.119e-05,88539.0,88523.0,0.09882748]
[1769498539502,0.02411376,88550.0,88525.0,0.00546306]
[1769498539710,0.02411376,88550.0,88531.0,0.59689144]
[1769498539873,0.02411376,88550.0,88533.0,0.59785673]
[1769498541924,0.02411376,88550.0,88533.0,0.59689144]
[1769498542712,0.02379109,88550.0,88533.0,0.59689144]
[1769498543027,0.02379109,88550.0,88534.0,0.05968914]
[1769498545046,0.62658645,88549.0,88524.0,0.1476]
[1769498545415,0.02660479,88544.0,88524.0,0.1476]
[1769498545622,0.6264258,88541.0,88524.0,0.1476]
[1769498545824,0.0112933,88548.0,88524.0,0.1476]
[1769498545825,0.02885366,88538.0,88524.0,0.1476]
[1769498545961,0.6264258,88535.0,88524.0,0.1476]
[1769498546164,0.04745918,88547.0,88524.0,0.1476]
[1769498546165,0.02885366,88532.0,88524.0,0.1476]
[1769498546369,0.02885366,88532.0,88522.0,6.864e-05]
[1769498546370,0.02885366,88530.0,88522.0,6.864e-05]
[1769498547661,0.00016065,88529.0,88522.0,6.864e-05]
[1769498552204,0.46884473,88531.0,88522.0,6.864e-05]
[1769498553910,0.02481906,88535.0,88522.0,6.864e-05]
[1769498554259,0.0001928,88551.0,88522.0,6.864e-05]
[1769498554260,0.02481906,88541.0,88522.0,6.864e-05]
[1769498554461,0.02481906,88541.0,88523.0,0.0539171]
[1769498554666,0.65124486,88541.0,88523.0,0.0539171]
[1769498554864,0.0001928,88551.0,88527.0,0.02387428]
[1769498554865,0.02481906,88549.0,88527.0,0.02387428]
[1769498555114,0.6264258,88547.0,88528.0,0.62493022]
[1769498555275,0.65124486,88544.0,88529.0,0.07027902]
[1769498555484,0.02481906,88543.0,88527.0,0.02387428]
[1769498555694,0.6264258,88543.0,88523.0,0.67884732]
[1769498555895,0.6264258,88541.0,88523.0,0.67884732]
[1769498556172,0.65124486,88541.0,88523.0,0.67884732]
[1769498556365,0.02481906,88540.0,88524.0,0.07027902]
[1769498556565,0.6264258,88539.0,88524.0,0.07027902]
[1769498557434,0.65124486,88537.0,88522.0,6.864e-05]
[1769498559882,0.6264258,88537.0,88522.0,6.864e-05]
[1769498560512,0.6264258,88537.0,88522.0,0.02394292]
[1769498560734,0.6264258,88537.0,88523.0,0.01400229]
[1769498566199,0.6264258,88537.0,88522.0,0.02394292]
[1769498568336,0.45284817,88537.0,88522.0,0.02394292]
[1769498577284,0.45284817,88537.0,88516.0,0.11608]
[1769498577483,0.45298826,88537.0,88512.0,0.03432842]
[1769498577695,0.45298826,88537.0,88515.0,0.6678395]
[1769498577867,0.45298826,88537.0,88517.0,0.6678395]
[1769498578031,0.45298826,88537.0,88518.0,0.03772996]
[1769498578677,0.45282702,88537.0,88518.0,0.03772996]
[1769498579373,0.45282702,88537.0,88519.0,0.03965291]
[1769498579575,0.45282702,88537.0,88520.0,0.03772996]
[1769498594559,0.45282702,88537.0,88521.0,0.02410833]
[1769498594766,0.45282702,88537.0,88522.0,0.02410833]
[1769498597631,0.0002208,88543.0,88528.0,0.02410833]
[1769498597898,0.0002208,88543.0,88530.0,0.02410833]
[1769498598180,0.0002208,88543.0,88531.0,0.02410833]
[1769498598589,0.0002208,88543.0,88533.0,0.02410833]
[1769498606392,0.46651228,88550.0,88533.0,0.02410833]
[1769498606592,0.46651228,88550.0,88534.0,0.11160278]
[1769498613486,0.49125919,88550.0,88534.0,0.11160278]
[1769498613626,0.63816577,88548.0,88533.0,0.02410833]
[1769498613826,0.63816577,88548.0,88529.0,0.11160278]
[1769498614038,0.66291268,88548.0,88527.0,0.02261484]
[1769498614277,0.63816577,88548.0,88526.0,0.64631048]
[1769498614482,0.66291268,88546.0,88526.0,0.64631048]
[1769498615886,0.63816577,88546.0,88526.0,0.64631048]
[1769498616090,0.02474691,88545.0,88526.0,0.64631048]
[1769498617481,0.0001473,88552.0,88544.0,0.01129382]
[1769498617678,0.0001473,88561.0,88529.0,0.07625306]
[1769498617679,0.0001473,88561.0,88549.0,0.37653375]
[1769498617849,0.0001473,88561.0,88550.0,0.03991486]
[1769498618260,0.0001473,88561.0,88547.0,0.02261484]
[1769498619456,0.02474691,88564.0,88547.0,0.02261484]
[1769498619701,0.66291268,88564.0,88547.0,0.02261484]
[1769498622770,0.63816577,88564.0,88542.0,0.09]
[1769498622976,0.02474691,88561.0,88542.0,0.09]
[1769498623207,0.02474691,88559.0,88542.0,0.09]
[1769498623407,0.02474691,88555.0,88535.0,0.62369564]
[1769498623608,0.02474691,88554.0,88536.0,0.11604]
[1769498623766,0.02474691,88553.0,88536.0,0.11604]
[1769498625798,0.02474691,88552.0,88536.0,0.11604]
[1769498626816,0.02474691,88552.0,88537.0,0.62369564]
[1769498627016,0.02474691,88552.0,88540.0,0.37653375]
[1769498637460,0.03616575,88574.0,88541.0,0.11160278]
[1769498637665,0.0233218,88568.0,88542.0,0.68049793]
[1769498637872,0.0233218,88566.0,88542.0,0.70374088]
[1769498638076,0.0233218,88562.0,88542.0,0.70374088]
[1769498638283,0.0233218,88560.0,88543.0,0.11160278]
[1769498638473,0.62322209,88559.0,88543.0,0.11160278]
[1769498638679,0.64654389,88558.0,88543.0,0.11160278]
[1769498639106,0.0233218,88557.0,88544.0,0.02761996]
[1769498639323,0.0233218,88557.0,88544.0,0.02729816]
[1769498641167,0.64654389,88557.0,88544.0,0.02729816]
[1769498643013,0.64654389,88557.0,88544.0,0.02474643]
[1769498643352,0.64654389,88557.0,88545.0,0.04125748]
[1769498645083,0.64654389,88557.0,88540.0,0.37653375]
[1769498646135,0.62322209,88557.0,88537.0,0.68049793]
[1769498646343,0.0233218,88554.0,88536.0,0.11604]
[1769498646542,0.0233218,88552.0,88536.0,0.11604]
[1769498650461,0.64654389,88552.0,88536.0,0.11604]
[1769498651269,0.62322209,88552.0,88533.0,0.02324295]
[1769498651475,0.0233218,88549.0,88528.0,0.00036399]
[1769498651685,0.64654389,88548.0,88528.0,0.00036399]
[1769498651890,0.64654389,88548.0,88530.0,0.3997767]
[1769498654158,0.0233218,88545.0,88528.0,0.00036399]
[1769498654392,0.62322209,88544.0,88528.0,0.00036399]
[1769498654582,0.62322209,88542.0,88528.0,0.00036399]
[1769498659426,0.62322209,88542.0,88528.0,0.02613936]
[1769498665064,0.62310914,88542.0,88528.0,0.02613936]
[1769498674407,0.0204413,88556.0,88517.0,0.1477963]
[1769498674408,0.0198394,88528.0,88518.0,0.03722007]
[1769498674611,0.67988797,88528.0,88518.0,0.03722007]
[1769498674791,0.66004857,88528.0,88518.0,0.03722007]
[1769498675998,0.0112933,88548.0,88518.0,0.03722007]
[1769498676221,0.0112933,88548.0,88517.0,0.0001963]
[1769498676222,0.11298119,88547.0,88530.0,0.3765743]
[1769498676357,0.00014012,88548.0,88533.0,0.03722007]
[1769498676358,0.11298119,88546.0,88533.0,0.03722007]
[1769498676560,0.00014012,88548.0,88533.0,0.03722007]
[1769498677215,0.00014012,88548.0,88533.0,0.61963078]
[1769498677392,0.00014012,88548.0,88534.0,0.03722007]
[1769498696775,0.00014012,88548.0,88530.0,0.3765743]
[1769498697166,0.00014012,88548.0,88530.0,0.39998589]
[1769498697346,0.00014012,88548.0,88530.0,1.02328538]
[1769498697953,0.63832392,88548.0,88530.0,1.02328538]
[1769498699334,0.61475119,88548.0,88530.0,1.02328538]
[1769498700779,0.6381838,88547.0,88530.0,1.02328538]
[1769498701052,0.02357273,88546.0,88530.0,1.02328538]
[1769498705213,0.02357273,88546.0,88530.0,0.99987379]
[1769498708839,0.02357273,88544.0,88530.0,0.3765743]
[1769498709040,0.61461107,88542.0,88530.0,0.3765743]
[1769498709241,0.61461107,88541.0,88526.0,0.0001253]
[1769498709447,0.02357273,88540.0,88526.0,0.0001253]
[1769498712750,0.61461107,88539.0,88526.0,0.0001253]
[1769498712951,0.61461107,88537.0,88526.0,0.0001253]
[1769498713178,0.02357273,88536.0,88526.0,0.0001253]
[1769498719052,0.02357273,88536.0,88526.0,0.3766996]
[1769498720719,0.43137431,88543.0,88526.0,0.3766996]
[1769498720929,0.61461107,88541.0,88530.0,0.3765743]
[1769498721135,0.02357273,88540.0,88530.0,0.3765743]
[1769498721949,0.02357273,88540.0,88526.0,0.0001253]
[1769498722818,0.02383432,88539.0,88526.0,0.0001253]
[1769498726425,0.0001253,88526.0,88512.0,0.64120261]
[1769498726557,0.0001253,88526.0,88510.0,0.37657724]
[1769498726967,0.01129369,88545.0,88510.0,0.37657724]
[1769498726968,0.61402709,88527.0,88510.0,0.37657724]
[1769498727172,0.63665119,88527.0,88510.0,0.37657724]
[1769498728524,0.63665119,88527.0,88508.0,0.02428947]
[1769498728748,0.61402709,88525.0,88508.0,0.02428947]
[1769498728919,0.63665119,88525.0,88508.0,0.02428947]
[1769498737973,0.61402709,88525.0,88508.0,0.02428947]
[1769498739116,0.0226241,88530.0,88514.0,0.02414367]
[1769498739796,0.63665119,88530.0,88514.0,0.02414367]
[1769498745827,0.61402709,88530.0,88514.0,0.02414367]
[1769498750887,0.61402709,88530.0,88517.0,0.02428947]
[1769498756025,0.61402709,88530.0,88517.0,0.01884365]
[1769498756247,0.61402709,88530.0,88518.0,0.02354542]
[1769498757910,0.6374486,88530.0,88508.0,0.0001458]
[1769498758116,0.01129484,88536.0,88508.0,0.0001458]
[1769498758117,0.02342151,88529.0,88508.0,0.0001458]
[1769498758319,0.64185595,88528.0,88509.0,0.02354542]
[1769498760808,0.64185595,88528.0,88509.0,0.62649439]
[1769498760963,0.64185595,88528.0,88510.0,0.02354542]
[1769498761980,0.64185595,88528.0,88511.0,0.02354542]
[1769498762179,0.11608,88538.0,88514.0,0.62649439]
[1769498762376,0.11314821,88537.0,88517.0,0.02354542]
[1769498762717,0.75500416,88536.0,88517.0,0.02354542]
[1769498762874,0.64185595,88534.0,88517.0,0.02354542]
[1769498763079,0.66527746,88534.0,88517.0,0.02354542]
[1769498765212,0.64185595,88533.0,88517.0,0.02354542]
[1769498766213,0.66527746,88533.0,88517.0,0.02354542]
[1769498782961,0.62843195,88531.0,88513.0,0.65131467]
[1769498783588,0.62843195,88531.0,88513.0,0.62649439]
[1769498783781,0.62843195,88531.0,88514.0,0.02482028]
[1769498783987,0.06515449,88530.0,88514.0,0.02482028]
[1769498784895,0.60532673,88530.0,88514.0,0.02482028]
[1769498800726,0.60516818,88530.0,88514.0,0.02482028]
[1769498801337,0.02253269,88529.0,88508.0,0.63411375]
[1769498801577,0.63232363,88528.0,88509.0,0.02252324]
[1769498801811,0.63232363,88528.0,88510.0,0.61144471]
[1769498801999,0.63232363,88528.0,88511.0,0.02252324]
[1769498802899,0.63216219,88528.0,88511.0,0.02252324]
[1769498804496,0.02253269,88529.0,88511.0,0.02252324]
[1769498804658,0.02253269,88529.0,88513.0,0.02252324]
[1769498821926,0.11608,88538.0,88513.0,0.02252324]
[1769498822139,0.61387007,88535.0,88515.0,0.02433707]
[1769498822348,0.11315205,88534.0,88515.0,0.02433707]
[1769498822533,0.58687007,88533.0,88515.0,0.02433707]
[1769498822744,0.0001458,88539.0,88517.0,0.02433707]
[1769498822960,0.11298525,88538.0,88523.0,0.62730315]
[1769498823167,0.1162258,88539.0,88524.0,0.02433707]
[1769498823368,0.11606375,88539.0,88524.0,0.02433707]
[1769498823662,0.1159018,88539.0,88524.0,0.02433707]
[1769498827786,0.00016195,88538.0,88524.0,0.02433707]
[1769498828759,0.61387007,88552.0,88526.0,0.62730315]
[1769498828970,0.11608,88549.0,88529.0,0.62730315]
[1769498829176,0.11608,88549.0,88531.0,0.02433707]
[1769498829997,0.11608,88549.0,88533.0,0.02433707]
[1769498830216,0.61387007,88552.0,88534.0,0.08950109]
[1769498830426,0.72995007,88552.0,88534.0,0.08950109]
[1769498831837,0.72995007,88552.0,88534.0,0.02433707]
[1769498837945,0.72995007,88552.0,88532.0,0.62730315]
[1769498838194,0.72995007,88552.0,88529.0,0.02433707]
[1769498838195,0.61415599,88548.0,88529.0,0.02433707]
[1769498838368,0.63677389,88548.0,88529.0,0.02433707]
[1769498839002,0.0226179,88547.0,88529.0,0.02433707]
[1769498839915,0.0226179,88547.0,88529.0,0.0358879]
[1769498840100,0.0226179,88547.0,88529.0,0.02433707]
[1769498840299,0.0226179,88545.0,88529.0,0.02433707]
[1769498841447,0.0226179,88545.0,88528.0,0.62730315]
[1769498850114,0.02319808,88544.0,88528.0,0.62730315]
[1769498857282,0.00028592,88548.0,88528.0,0.62730315]
[1769498857470,0.11307325,88547.0,88530.0,0.60233406]
[1769498857678,0.00028592,88548.0,88530.0,0.60233406]
[1769498857879,0.02345303,88546.0,88530.0,0.60233406]
[1769498858100,0.59230244,88549.0,88530.0,0.60233406]
[1769498858377,0.02319808,88548.0,88530.0,0.60233406]
[1769498858557,0.02319808,88548.0,88530.0,0.61606864]
[1769498858958,0.02319808,88547.0,88530.0,0.61606864]
[1769498861234,0.02319808,88547.0,88530.0,0.60233406]
[1769498869946,0.11314787,88546.0,88530.0,0.60233406]
[1769498870209,0.02319808,88546.0,88530.0,0.60233406]
[1769498880114,0.02319808,88546.0,88526.0,0.0001458]
[1769498880279,0.61912303,88543.0,88526.0,0.0001458]
[1769498880606,0.61912303,88537.0,88526.0,0.0001458]
[1769498880839,0.02368385,88534.0,88526.0,0.0001458]
[1769498881104,0.02368385,88532.0,88526.0,0.0001458]
[1769498900881,0.02368385,88532.0,88517.0,0.0001458]
[1769498900882,0.02382965,88526.0,88517.0,0.0001458]
[1769498901096,0.64280688,88526.0,88517.0,0.0001458]
[1769498903081,0.02368385,88526.0,88517.0,0.0001458]
[1769498903279,0.02302197,88532.0,88517.0,0.0001458]
[1769498903678,0.59533475,88532.0,88517.0,0.0001458]
[1769498910942,0.62699557,88532.0,88517.0,0.0001458]
[1769498913088,0.6039736,88532.0,88517.0,0.0001458]
[1769498913241,0.63626338,88531.0,88517.0,0.0001458]
[1769498927903,0.63626338,88530.0,88517.0,0.0001458]
[1769498929330,0.11608,88532.0,88508.0,0.0001458]
[1769498929331,0.02465888,88527.0,88508.0,0.0001458]
[1769498929539,0.02465888,88523.0,88508.0,0.0001458]
[1769498929741,0.63626338,88523.0,88508.0,0.0001458]
[1769498936208,0.6116045,88523.0,88508.0,0.0001458]
[1769498936415,0.6116045,88523.0,88508.0,0.02415454]
[1769498938304,0.67523856,88523.0,88508.0,0.02415454]
[1769498942373,0.6116045,88523.0,88508.0,0.02415454]
[1769498942794,0.02473607,88528.0,88509.0,0.56186532]
[1769498942974,0.0001458,88539.0,88512.0,0.02400874]
[1769498943185,0.11608,88531.0,88515.0,0.56186532]
[1769498943397,0.11608,88531.0,88518.0,0.02400874]
[1769498943604,0.11608,88531.0,88519.0,0.02400874]
[1769498945953,0.011608,88530.0,88519.0,0.02400874]
[1769498946401,0.011608,88530.0,88510.0,0.02400874]
[1769498946602,0.011608,88530.0,88512.0,0.56186532]
[1769498946810,0.011608,88530.0,88513.0,0.02400874]
[1769498948441,0.11608,88531.0,88513.0,0.56186532]
[1769498948616,0.11608,88531.0,88514.0,0.02400874]
[1769498948822,0.11608,88531.0,88515.0,0.02400874]
[1769498952348,0.70901964,88530.0,88515.0,0.02400874]
[1769498952552,0.59594329,88530.0,88515.0,0.02400874]
[1769498952980,0.11307635,88529.0,88515.0,0.02400874]
[1769498953196,0.59594329,88530.0,88515.0,0.02400874]
[1769498953403,0.11308314,88529.0,88515.0,0.02400874]
[1769498953728,0.59594329,88530.0,88515.0,0.02400874]
[1769498954000,0.11308314,88529.0,88515.0,0.02400874]
[1769498954298,0.59594329,88530.0,88515.0,0.02400874]
[1769498954510,0.11308805,88529.0,88515.0,0.02400874]
[1769498954711,0.59594329,88530.0,88515.0,0.02400874]
[1769498955004,0.70903134,88529.0,88515.0,0.02400874]
[1769498955203,0.59594329,88529.0,88508.0,0.0001458]
[1769498955412,0.02473607,88526.0,88508.0,0.0001458]
[1769498955612,0.59594329,88525.0,88508.0,0.0001458]
[1769498956193,0.02473607,88522.0,88508.0,0.0001458]
[1769498956458,0.59594329,88519.0,88508.0,0.0001458]
[1769498956795,0.61469209,88519.0,88508.0,0.0001458]
[1769498957452,0.61478172,88519.0,88508.0,0.0001458]
[1769498957861,8.963e-05,88519.0,88508.0,0.0001458]
[1769498962019,8.963e-05,88519.0,88508.0,0.03220157]
[1769498962605,8.963e-05,88519.0,88508.0,0.0001458]
[1769498963667,8.963e-05,88519.0,88508.0,0.58195033]
[1769498963876,8.963e-05,88519.0,88508.0,0.60485349]
[1769498965792,0.02417574,88534.0,88511.0,0.5644717]
[1769498965942,0.11312969,88533.0,88514.0,0.02495679]